{"text_format":"1","workbook":"xlsx","n_sheets":1,"sheets":["Prototype C1"],"not_rendered":{"charts":0,"images":0,"macros":1,"external_links":0,"defined_names":66,"comments":0,"pivot_tables":0},"unopened":[],"bounds":{"document_bytes":16777216,"sheet_cells":100000,"rows_first":2000,"rows_last":500,"rows_between":2000,"halvings":0,"cell_chars":16384,"cell_head_chars":4096},"cells_cut":0,"cells_raw":0,"read":"whole","date_system":"1900"}

{"sheet":"Prototype C1","index":0,"n_rows":141,"n_cols":37,"rows_kept":141,"cut":false,"hidden":false,"merged":[[3,5,3,12],[3,13,3,20],[3,21,3,28],[3,29,3,36]]}
[]
["Output Results for Prescriptive Code Compliance Reference Design Qualitative Tests (Envelope Requirements shall use either U-Factor, or R-Values)"]
[]
[null,null,null,null,null,"Test Run 1 (Climate Zone 1), Manufacturing",null,null,null,null,null,null,null,"Test Run 2 (Climate Zone 2), Manufacturing",null,null,null,null,null,null,null,"Test Run 3 (Climate Zone 1), Warehouse",null,null,null,null,null,null,null,"Test Run 4 (Climate Zone 2), Warehouse"]
[null,"TYPE","Description of Component","UNITS","MIN / MAX","Sizing Results","Proposed Design","ASHRAE's Criteria","Meet ASHRAE's Req. (Pass/Fail)","Software Meets ASHRAE's Req. (Pass/Fail)","FEC's Criteria","Meet FEC's Req. (Pass/Fail)","Software Meets FEC's Req. (Pass/Fail)","Sizing Results","Proposed Design","ASHRAE's Criteria","Meet ASHRAE's Req. (Pass/Fail)","Software Meets ASHRAE's Req. (Pass/Fail)","FEC's Criteria","Meet FEC's Req. (Pass/Fail)","Software Meets FEC's Req. (Pass/Fail)","Sizing Results","Proposed Design","ASHRAE's Criteria","Meet ASHRAE's Req. (Pass/Fail)","Software Meets ASHRAE's Req. (Pass/Fail)","FEC's Criteria","Meet FEC's Req. (Pass/Fail)","Software Meets FEC's Req. (Pass/Fail)","Sizing Results","Proposed Design","ASHRAE's Criteria","Meet ASHRAE's Req. (Pass/Fail)","Software Meets ASHRAE's Req. (Pass/Fail)","FEC's Criteria","Meet FEC's Req. (Pass/Fail)","Software Meets FEC's Req. (Pass/Fail)"]
["Envelope Components"]
[null,"Wall","Exterior Wall: U-Value","Btu/(h-ft2-°F)","MAX",null,0.35,0.57999999999999996,"Pass","Pass",0.14199999999999999,"Fail",0.14199999999999999,null,0.35,0.151,"Fail","Fail",0.14199999999999999,"Fail","Fail",null,0.35,0.57999999999999996,"Pass","Pass",0.14199999999999999,"Fail","Fail",null,0.35,0.151,"Fail","Fail",0.14199999999999999,"Fail","Fail"]
[null,"Wall","Exterior Wall: Insulation R-Value","(h-ft2-°F)/Btu","MIN",null,"R-0","NR","Pass","NA","R-5.7 ci","Fails","NA",null,"R-0","R-5.7 ci","Fail","NA","R-5.7 ci","Fail","NA",null,"R-0","NR","Pass","NA","R-5.7 ci","Fail","NA",null,"R-0","R-5.7 ci","Fail","NA","R-5.7 ci","Fail","NA"]
[null,"Floor","Floor Slab-on-grade: Unheated F-factor","Btu/(h-ft-°F)","MAX",null,0.7,0.73,"Pass","Pass",0.73,"Pass","Pass",null,0.7,0.73,"Pass","Pass",0.73,"Pass",0.73,null,0.7,0.73,"Pass","Pass",0.73,"Pass","Pass",null,0.7,0.73,"Pass","Pass",0.73,"Pass","Pass"]
[null,"Roof","Exterior Roof: U-Value","Btu/(h-ft2-°F)","MAX",null,0.04,6.3E-2,"Pass","Pass",4.8000000000000001E-2,"Pass","Pass",null,0.04,4.8000000000000001E-2,"Pass","Pass",4.8000000000000001E-2,"Pass",4.8000000000000001E-2,null,0.04,6.3E-2,"Pass","Pass",4.8000000000000001E-2,"Pass","Pass",null,0.04,4.8000000000000001E-2,"Pass","Pass",4.8000000000000001E-2,"Pass","Pass"]
[null,"Roof","Exterior Roof: Insulation R-Value","(h-ft2-°F)/Btu","MIN",null,"R-20 ci","R-15 ci","Pass","NA","R-20 ci","Pass","NA",null,"R-20 ci","R-20 ci","Pass","NA","R-20 ci","Pass","NA",null,"R-20 ci","R-15 ci","Pass","NA","R-20 ci","Pass","NA",null,"R-20 ci","R-20 ci","Pass","NA","R-20 ci","Pass","NA"]
[null,"Roof","Exterior Roof: Solar Reflectance","-","MIN",null,0.6,0.55000000000000004,"Pass","Pass",0.55000000000000004,"Pass","Pass",null,0.6,0.55000000000000004,"Pass","Pass",0.55000000000000004,"Pass","Pass",null,0.6,0.55000000000000004,"Pass","Pass",0.55000000000000004,"Pass","Pass",null,0.6,0.55000000000000004,"Pass","Pass",0.55000000000000004,null,"Pass"]
[null,"Roof","Exterior Roof: Thermal Emittance","-","MIN",null,0.9,0.75,"Pass","Pass",0.75,"Pass","Pass",null,0.9,0.75,"Pass","Pass",0.75,"Pass","Pass",null,0.9,0.75,"Pass","Pass",0.75,"Pass","Pass",null,0.9,0.75,"Pass","Pass",0.75,"Pass","Pass"]
[null,"Fenestration","Exterior Window: U-Value","Btu/(h-ft2-°F)","MAX",null,0.9,1.2,"Pass","Pass",0.5,"Fail","Pass",null,0.6,0.75,"Pass","Pass",0.5,"Fail","Fail",null,0.9,1.2,"Pass","Pass",0.5,"Fail","Fail",null,0.6,1.1000000000000001,"Fail","Fail",0.5,"Fail","Fail"]
[null,"Fenestration","Exterior Window: SHGC","-",null,null,0.5,0.25,null,null,0.25,"Fail",0.4,null,0.4,0.25,null,null,0.25,"Fail","Fail",null,0.5,0.25,"Fail","Fail",0.25,"Fail","Fail",null,0.4,0.25,"Fail","Fail",0.25,"Fail","Fail"]
[null,"Fenestration","SHGC Adjusted (ASHRAE)","-","MAX",null,{"$f":"0.44*0.5","v":0.22},{"$f":"H15","v":0.25},"Pass","Pass",null,null,null,null,{"$f":"0.44*0.6","v":0.26400000000000001},{"$f":"P15","v":0.25},"Fail","Fail",null,null,null,null,{"$f":"0.44*W$15","v":0.22},{"$f":"X15","v":0.25},"Pass","Pass",null,null,null,null,{"$f":"0.44*AE$15","v":0.17600000000000002},{"$f":"AF15","v":0.25},"Pass","Pass"]
[null,"Fenestration","SHGC Adjusted (FEC)","-","MAX",null,{"$f":"G15","v":0.5},null,null,null,{"$f":"1.6*K$15","v":0.4},"Fail","Fail",null,{"$f":"O15","v":0.4},null,null,null,{"$f":"1.6*S$15","v":0.4},"Pass","Pass",null,{"$f":"W15","v":0.5},null,null,null,{"$f":"1.6*AA$15","v":0.4},"Fail","Fail",null,{"$f":"AE15","v":0.4},null,null,null,{"$f":"1.6*AI$15","v":0.4},"Pass","Pass"]
[null,"Fenestration","Exterior Window: WWR Max allowed","%","MAX",null,3.33,40,"Pass","Pass",40,"Pass","Pass",null,3.33,40,"Pass","Pass",40,"Pass","Pass",null,3.33,40,"Pass","Pass",40,"Pass","Pass",null,3.33,40,"Pass","Pass",40,"Pass","Pass"]
[null,"Fenestration","Window Area"]
[null,"Fenestration","South Window Area","ft2","MAX",null,1280,3840,"Pass","Pass",3840,"Pass","Pass",null,1280,3840,"Pass","Pass",3840,"Pass","Pass",null,1280,3840,"Pass","Pass",3840,"Pass","Pass",null,1280,3840,"Pass","Pass",3840,"Pass","Pass"]
[null,"Fenestration","East Window Area","ft2","MAX",null,0,0,"Pass","Pass",0,"Pass","Pass",null,0,0,"Pass","Pass",0,"Pass","Pass",null,0,0,"Pass","Pass",0,"Pass","Pass",null,0,0,"Pass","Pass",0,"Pass","Pass"]
[null,"Fenestration","North Window Area","ft2","MAX",null,0,0,"Pass","Pass",0,"Pass","Pass",null,0,0,"Pass","Pass",0,"Pass","Pass",null,0,0,"Pass","Pass",0,"Pass","Pass",null,0,0,"Pass","Pass",0,"Pass","Pass"]
[null,"Fenestration","West Window Area","ft2","MAX",null,0,0,"Pass","Pass",0,"Pass","Pass",null,0,0,"Pass","Pass",0,"Pass","Pass",null,0,0,"Pass","Pass",0,"Pass","Pass",null,0,0,"Pass","Pass",0,"Pass","Pass"]
[null,"Skylight","Skylight Area","ft2","MAX",null,3200,8000,"Pass","Pass",4800,"Pass","Pass",null,3200,8000,"Pass","Pass",4800,"Pass","Pass",null,3200,8000,"Pass","Pass",4800,"Pass","Pass",null,3200,8000,"Pass","Pass",4800,"Pass","Pass"]
[null,"Skylight","Skylight: U-Value","Btu/(h-ft2-°F)","MAX",null,1,1.98,"Pass","Pass",0.75,"Fail","Fail",null,1,1.98,"Pass","Pass",0.65,"Fail","Fail",null,1,1.98,"Pass","Pass",0.75,"Fail","Fail",null,1,1.98,"Pass","Pass",0.65,"Fail","Fail"]
[null,"Skylight","Skylight: SHGC","-","MAX",null,0.25,0.19,"Fail","Fail",0.35,"Pass","Pass",null,0.25,0.19,"Fail","Fail",0.35,"Pass","Pass",null,0.25,0.19,"Fail","Pass",0.35,"Pass","Pass",null,0.25,0.19,"Fail","Fail",0.35,"Pass","Pass"]
[null,"Skylight","Skylight: Skylight-Roof Ratio","%","MAX",null,2,5,"Pass","Pass",3,"Pass","Pass",null,2,5,"Pass","Pass",3,"Pass","Pass",null,2,5,"Pass","Pass",3,"Pass","Pass",null,2,5,"Pass","Pass",3,"Pass","Pass"]
[]
["Horizontal Overhang Shade"]
[null,null,"Projection Factor (South)","-",null,null,1,0,"Pass","Pass",0,"Pass","Pass",null,1,0,"Pass","Pass",0,"Pass","Pass",null,1,0,"Pass","Pass",0,"Pass","Pass",null,1,0,"Pass","Pass",0,"Pass","Pass"]
[]
["Interior Lighting"]
[null,"Lighting","Lighting Power Density: Building Area Method","W/ft2","MAX",null,1,1.1100000000000001,"Pass","Pass",1.3,"Pass","Pass",null,1,1.1100000000000001,"Pass","Pass",1.3,"Pass","Pass",null,1,0.66,"Fail","Fail",0.6,"Fail","Fail",null,1,0.66,"Fail","Fail",0.6,"Fail","Fail"]
[]
["Exterior Lighting"]
[null,"Lighting","Exterior Total Lighting Allowance","W","MAX",null,824,880,"Pass","Pass",880,"Pass","Pass",null,824,880,"Pass","Pass",880,"Pass","Pass",null,824,880,"Pass","Pass",880,"Pass","Pass",null,824,880,"Pass","Pass",880,"Pass","Pass"]
[]
["Internal Loads"]
[null,"Equipment","Internal Equipment Power Density","W/ft2","-",null,1.6,1.6,"Pass","NC",1.6,"Pass","NC",null,1.6,1.6,"Pass","NC",1.6,"Pass","NC",null,1.6,1.6,"Pass","NC",1.6,"Pass","NC",null,1.6,1.6,"Pass","Fail (Criteria is 0.2)",1.6,"Pass","NC"]
[]
["HVAC System"]
[null,"HVAC","System Type",null,null,null,"Single Zone Packaged Air Conditioner","Single Zone Packaged Air Conditioner","Pass",null,"Single Zone Packaged Air Conditioner","Pass",null,null,"Single Zone Packaged Air Conditioner","Single Zone Packaged Air Conditioner",null,null,"Single Zone Packaged Air Conditioner",null,null,null,"Single Zone Packaged Air Conditioner","Single Zone Packaged Air Conditioner","Pass",null,"Single Zone Packaged Air Conditioner","Pass",null,null,"Single Zone Packaged Air Conditioner","Single Zone Packaged Air Conditioner","Pass",null,"Single Zone Packaged Air Conditioner","Pass"]
[]
[]
[null,null,"Warm-Air Furnace, Gas Fired, Efficiency:"]
[null,"Furnace","North Zone Furnace Efficiency: ASHRAE","%","MIN",780.7,90,80,"Pass","Pass",null,null,null,854.52,90,80,"Pass","Pass"]
[null,"Furnace","North Zone Furnace Efficiency: FEC","%","MIN",780.7,90,null,null,null,80,"Pass","Pass",854.52,90,null,null,null,80,"Pass","Pass"]
[]
[null,"Furnace","South Zone Furnace Efficiency: ASHRAE","%","MIN",848.11,90,80,"Pass","Pass",null,null,null,934.05,90,80,"Pass","Pass"]
[null,"Furnace","South Zone Furnace Efficiency: FEC","%","MIN",848.11,90,null,null,null,80,"Pass","Pass",934.05,90,null,null,null,80,"Pass","Pass"]
[]
[null,"Furnace","East Zone Furnace Efficiency: ASHRAE","%","MIN",924.02,90,80,"Pass","Pass",null,null,null,966.5,90,80,"Pass","Pass"]
[null,"Furnace","East Zone Furnace Efficiency: FEC","%","MIN",924.02,90,null,null,null,80,"Pass","Pass",966.5,90,null,null,null,80,"Pass","Pass"]
[]
[null,"Furnace","West Zone Furnace Efficiency: ASHRAE","%","MIN",923.04,90,80,"Pass","Pass",null,null,null,987.43,90,80,"Pass","Pass"]
[null,"Furnace","West Zone Furnace Efficiency: FEC","%","MIN",923.04,90,null,null,null,80,"Pass","Pass",987.43,90,null,null,null,80,"Pass","Pass"]
[]
[null,"Furnace","Core Zone Furnace Efficiency: ASHRAE","%","MIN",12100.3,90,80,"Pass","Pass",null,null,null,13107.54,90,80,"Pass","Pass"]
[null,"Furnace","Core Zone Furnace Efficiency: FEC","%","MIN",12100.26,90,null,null,null,80,"Pass","Pass",13107.54,90,null,null,null,80,"Pass","Pass"]
[]
[]
[null,null,"Heat Pump Efficiency (HSPF, COP at 47°F/COP at 17°F):"]
[null,null,"Cooling Capacity Perimeter Zone North:"]
[null,"Heating DX","(Size < 65 kBtu/h): HSPF Values","HSPF","MIN",null,"NA",null,null,null,null,null,null,null,"NA",null,null,null,null,null,null,null,"NA",null,null,null,null,null,null,null,"NA"]
[null,"Heating DX","(65 kBtu/h <= Size < 135 kBtu/h): COP Values","COP / COP","MIN",null,"NA",null,null,null,null,null,null,null,"NA",null,null,null,null,null,null,null,"NA",null,null,null,null,null,null,null,"NA"]
[null,"Heating DX","(Size > 135 kBtu/h): COP Values","COP / COP","MIN",null,"NA",null,null,null,null,null,null,null,"NA",null,null,null,null,null,null,null,"NA",null,null,null,null,null,null,null,"NA"]
[null,null,"Cooling Capacity Perimiter Zone South:"]
[null,"Heating DX","(Size < 65 kBtu/h): HSPF Values","HSPF","MIN",null,"NA",null,null,null,null,null,null,null,"NA",null,null,null,null,null,null,null,"NA",null,null,null,null,null,null,null,"NA"]
[null,"Heating DX","(65 kBtu/h <= Size < 135 kBtu/h): COP Values","COP / COP","MIN",null,"NA",null,null,null,null,null,null,null,"NA",null,null,null,null,null,null,null,"NA",null,null,null,null,null,null,null,"NA"]
[null,"Heating DX","(Size > 135 kBtu/h): COP Values","COP / COP","MIN",null,"NA",null,null,null,null,null,null,null,"NA",null,null,null,null,null,null,null,"NA",null,null,null,null,null,null,null,"NA"]
[null,null,"Cooling Capacity Perimeter Zone East:"]
[null,"Heating DX","(Size < 65 kBtu/h): HSPF Values","HSPF","MIN",null,"NA",null,null,null,null,null,null,null,"NA",null,null,null,null,null,null,null,"NA",null,null,null,null,null,null,null,"NA"]
[null,"Heating DX","(65 kBtu/h <= Size < 135 kBtu/h): COP Values","COP / COP","MIN",null,"NA",null,null,null,null,null,null,null,"NA",null,null,null,null,null,null,null,"NA",null,null,null,null,null,null,null,"NA"]
[null,"Heating DX","(Size > 135 kBtu/h): COP Values","COP / COP","MIN",null,"NA",null,null,null,null,null,null,null,"NA",null,null,null,null,null,null,null,"NA",null,null,null,null,null,null,null,"NA"]
[null,null,"Cooling Capacity Perimeter Zone West:"]
[null,"Heating DX","(Size < 65 kBtu/h): HSPF Values","HSPF","MIN",null,"NA",null,null,null,null,null,null,null,"NA",null,null,null,null,null,null,null,"NA",null,null,null,null,null,null,null,"NA"]
[null,"Heating DX","(65 kBtu/h <= Size < 135 kBtu/h): COP Values","COP / COP","MIN",null,"NA",null,null,null,null,null,null,null,"NA",null,null,null,null,null,null,null,"NA",null,null,null,null,null,null,null,"NA"]
[null,"Heating DX","(Size > 135 kBtu/h): COP Values","COP / COP","MIN",null,"NA",null,null,null,null,null,null,null,"NA",null,null,null,null,null,null,null,"NA",null,null,null,null,null,null,null,"NA"]
[null,null,"Cooling Capacity Core Zone:"]
[null,"Heating DX","(Size < 65 kBtu/h): HSPF Values","HSPF","MIN",null,"NA",null,null,null,null,null,null,null,"NA",null,null,null,null,null,null,null,"NA",null,null,null,null,null,null,null,"NA"]
[null,"Heating DX","(65 kBtu/h <= Size < 135 kBtu/h): COP Values","COP / COP","MIN",null,"NA",null,null,null,null,null,null,null,"NA",null,null,null,null,null,null,null,"NA",null,null,null,null,null,null,null,"NA"]
[null,"Heating DX","(Size > 135 kBtu/h): COP Values","COP / COP","MIN",null,"NA",null,null,null,null,null,null,null,"NA",null,null,null,null,null,null,null,"NA",null,null,null,null,null,null,null,"NA"]
[null,null,"Heating Minimum Efficiency:"]
[null,null,"Efficiency (HSPF, COP at 47°F/COP at 17°F):"]
[null,"Heating DX","North Zone System Efficiency: ASHRAE","HSPF","MIN",null,null,"NA",null,null,null,null,null,null,null,"NA",null,null,null,null,null,{"$f":"V102","v":415.57299999999998},"3.4 / 2.3","3.2 / 2.05","Pass","Pass",null,null,null,{"$f":"AD102","v":458.37400000000002},"3.4 / 2.3","3.2 / 2.05","Pass","Pass"]
[null,"Heating DX","North Zone System Efficiency: FEC","HSPF","MIN",null,null,null,null,null,"NA",null,null,null,null,null,null,null,"NA",null,null,{"$f":"V103","v":415.57299999999998},"3.4 / 2.3",null,null,null,"3.2 / 2.05","Pass","Pass",{"$f":"AD103","v":458.37400000000002},"3.4 / 2.3",null,null,null,"3.2 / 2.05","Pass","Pass"]
[]
[null,"Heating DX","South Zone System Efficiency: ASHRAE","EER / IEER","MIN",null,null,"NA",null,null,null,null,null,null,null,"NA",null,null,null,null,null,{"$f":"V105","v":455.56200000000001},"3.4 / 2.3","3.2 / 2.05","Pass","Pass",null,null,null,{"$f":"AD105","v":487.04300000000001},"3.4 / 2.3","3.2 / 2.05","Pass","Pass"]
[null,"Heating DX","South Zone System Efficiency: FEC","EER / IEER","MIN",null,null,null,null,null,"NA",null,null,null,null,null,null,null,"NA",null,null,{"$f":"V106","v":455.56200000000001},"3.4 / 2.3",null,null,null,"3.2 / 2.05","Pass","Pass",{"$f":"AD106","v":487.04300000000001},"3.4 / 2.3",null,null,null,"3.2 / 2.05","Pass","Pass"]
[]
[null,"Heating DX","East Zone System Efficiency: ASHRAE","EER / IEER","MIN",null,null,"NA",null,null,null,null,null,null,null,"NA",null,null,null,null,null,{"$f":"V108","v":492.161},"3.4 / 2.3","3.2 / 2.05","Pass","Pass",null,null,null,{"$f":"AD108","v":500.02199999999999},"3.4 / 2.3","3.2 / 2.05","Pass","Pass"]
[null,"Heating DX","East Zone System Efficiency: FEC","EER / IEER","MIN",null,null,null,null,null,"NA",null,null,null,null,null,null,null,"NA",null,null,{"$f":"V109","v":492.161},"3.4 / 2.3",null,null,null,"3.2 / 2.05","Pass","Pass",{"$f":"AD109","v":500.02199999999999},"3.4 / 2.3",null,null,null,"3.2 / 2.05","Pass","Pass"]
[]
[null,"Heating DX","West Zone System Efficiency: ASHRAE","EER / IEER","MIN",null,null,"NA",null,null,null,null,null,null,null,"NA",null,null,null,null,null,{"$f":"V111","v":487.19600000000003},"3.4 / 2.3","3.2 / 2.05","Pass","Pass",null,null,null,{"$f":"AD111","v":526.03700000000003},"3.4 / 2.3","3.2 / 2.05","Pass","Pass"]
[null,"Heating DX","West Zone System Efficiency: FEC","EER / IEER","MIN",null,null,null,null,null,"NA",null,null,null,null,null,null,null,"NA",null,null,{"$f":"V112","v":487.19600000000003},"3.4 / 2.3",null,null,null,"3.2 / 2.05","Pass","Pass",{"$f":"AD112","v":526.03700000000003},"3.4 / 2.3",null,null,null,"3.2 / 2.05","Pass","Pass"]
[]
[null,"Heating DX","Core Zone System Efficiency: ASHRAE","EER / IEER","MIN",null,null,"NA",null,null,null,null,null,null,null,"NA",null,null,null,null,null,{"$f":"V114","v":6760.3029999999999},"3.4 / 2.3","3.2 / 2.05","Pass","Pass",null,null,null,{"$f":"AD114","v":7199.74},"3.4 / 2.3","3.2 / 2.05","Pass","Pass"]
[null,"Heating DX","Core Zone System Efficiency: FEC","EER / IEER","MIN",null,null,null,null,null,"NA",null,null,null,null,null,null,null,"NA",null,null,{"$f":"V115","v":6760.3029999999999},"3.4 / 2.3",null,null,null,"3.2 / 2.05","Pass","Pass",{"$f":"AD115","v":7199.74},"3.4 / 2.3",null,null,null,"3.2 / 2.05","Pass","Pass"]
[]
[]
[null,null,"Air-Conditioner Minimum Efficiency:"]
[null,"Cooling DX","North Zone System Efficiency: ASHRAE","EER / IEER","MIN",427.95100000000002,"12.2/12.3","9.8 / 9.9","Pass","Pass",null,null,null,460.54,"12.2/12.3","9.8 / 9.9","Pass","Pass",null,null,null,415.57299999999998,"12.2/12.3","9.8 / 9.9","Pass","Pass",null,null,null,458.37400000000002,"12.2/12.3","9.8 / 9.9","Pass","Pass"]
[null,"Cooling DX","North Zone System Efficiency: FEC","EER / IEER","MIN",427.95100000000002,"12.2/12.3",null,null,null,"9.8 / 9.9","Pass","Pass",460.54,"12.2/12.3",null,null,null,"9.8 / 9.9","Pass","Pass",415.57299999999998,"12.2/12.3",null,null,null,"9.8 / 9.9","Pass","Pass",458.37400000000002,"12.2/12.3",null,null,null,"9.8 / 9.9","Pass","Pass"]
[]
[null,"Cooling DX","South Zone System Efficiency: ASHRAE","EER / IEER","MIN",470.39400000000001,"12.2/12.3","9.8 / 9.9","Pass","Pass",null,null,null,499.642,"12.2/12.3","9.8 / 9.9","Pass","Pass",null,null,null,455.56200000000001,"12.2/12.3","9.8 / 9.9","Pass","Pass",null,null,null,487.04300000000001,"12.2/12.3","9.8 / 9.9","Pass","Pass"]
[null,"Cooling DX","South Zone System Efficiency: FEC","EER / IEER","MIN",470.39400000000001,"12.2/12.3",null,null,null,"9.8 / 9.9","Pass","Pass",499.642,"12.2/12.3",null,null,null,"9.8 / 9.9","Pass","Pass",455.56200000000001,"12.2/12.3",null,null,null,"9.8 / 9.9","Pass","Pass",487.04300000000001,"12.2/12.3",null,null,null,"9.8 / 9.9","Pass","Pass"]
[]
[null,"Cooling DX","East Zone System Efficiency: ASHRAE","EER / IEER","MIN",507.00799999999998,"12.2/12.3","9.8 / 9.9","Pass","Pass",null,null,null,515.01800000000003,"12.2/12.3","9.8 / 9.9","Pass","Pass",null,null,null,492.161,"12.2/12.3","9.8 / 9.9","Pass","Pass",null,null,null,500.02199999999999,"12.2/12.3","9.8 / 9.9","Pass","Pass"]
[null,"Cooling DX","East Zone System Efficiency: FEC","EER / IEER","MIN",507.00799999999998,"12.2/12.3",null,null,null,"9.8 / 9.9","Pass","Pass",515.01800000000003,"12.2/12.3",null,null,null,"9.8 / 9.9","Pass","Pass",492.161,"12.2/12.3",null,null,null,"9.8 / 9.9","Pass","Pass",500.02199999999999,"12.2/12.3",null,null,null,"9.8 / 9.9","Pass","Pass"]
[]
[null,"Cooling DX","West Zone System Efficiency: ASHRAE","EER / IEER","MIN",491.83,"12.2/12.3","9.8 / 9.9","Pass","Pass",null,null,null,530.70500000000004,"12.2/12.3","9.8 / 9.9","Pass","Pass",null,null,null,487.19600000000003,"12.2/12.3","9.8 / 9.9","Pass","Pass",null,null,null,526.03700000000003,"12.2/12.3","9.8 / 9.9","Pass","Pass"]
[null,"Cooling DX","West Zone System Efficiency: FEC","EER / IEER","MIN",491.83,"12.2/12.3",null,null,null,"9.8 / 9.9","Pass","Pass",530.70500000000004,"12.2/12.3",null,null,null,"9.8 / 9.9","Pass","Pass",487.19600000000003,"12.2/12.3",null,null,null,"9.8 / 9.9","Pass","Pass",526.03700000000003,"12.2/12.3",null,null,null,"9.8 / 9.9","Pass","Pass"]
[]
[null,"Cooling DX","Core Zone System Efficiency: ASHRAE","EER / IEER","MIN",7053.7650000000003,"12.2/12.3","9.5 / 9.6","Pass","Pass",null,null,null,7487.5439999999999,"12.2/12.3","9.5 / 9.6","Pass","Pass",null,null,null,6760.3029999999999,"12.2/12.3","9.5 / 9.6","Pass","Pass",null,null,null,7199.74,"12.2/12.3","9.5 / 9.6","Pass","Pass"]
[null,"Cooling DX","Core Zone System Efficiency: FEC","EER / IEER","MIN",7053.7650000000003,"12.2/12.3",null,null,null,"9.5 / 9.6","Pass","Pass",7487.5439999999999,"12.2/12.3",null,null,null,"9.5 / 9.6","Pass","Pass",6760.3029999999999,"12.2/12.3",null,null,null,"9.5 / 9.6","Pass","Pass",7199.74,"12.2/12.3",null,null,null,"9.5 / 9.6","Pass","Pass"]
[]
[]
[null,null,"Air Economizer (Yes, or No):"]
[null,"Air Economizer","North Zone System Economizer: ASHRAE ","-","-",{"$f":"CCoolCapNorthZone","v":427.95100000000002},"No","No","Pass","NA",null,null,null,{"$f":"CCoolCapNorthZoneCZ2","v":460.54},"Yes","Yes","Pass","NA",null,null,null,{"$f":"CCoolCapNorthZone","v":427.95100000000002},"No","No","Pass","NA",null,null,null,{"$f":"CCoolCapNorthZoneCZ2","v":460.54},"Yes","Yes","Pass","NA"]
[null,"Air Economizer","North Zone System Economizer: FEC","-","-",{"$f":"CCoolCapNorthZoneIECC","v":427.95100000000002},"No",null,null,null,"No","Pass","NA",{"$f":"CCoolCapNorthZoneIECCCZ2","v":460.54},"Yes",null,null,null,"Yes","Pass","NA",{"$f":"CCoolCapNorthZoneIECC","v":427.95100000000002},"No",null,null,null,"No","Pass","NA",{"$f":"CCoolCapNorthZoneIECCCZ2","v":460.54},"Yes",null,null,null,"Yes","Pass","NA"]
[]
[null,"Air Economizer","South Zone System Economizer: ASHRAE ","-","-",{"$f":"CCoolCapSouthZone","v":470.39400000000001},"No","No","Pass","NA",null,null,null,{"$f":"CCoolCapSouthZoneCZ2","v":499.642},"Yes","Yes","Pass","NA",null,null,null,{"$f":"CCoolCapSouthZone","v":470.39400000000001},"No","No","Pass","NA",null,null,null,{"$f":"CCoolCapSouthZoneCZ2","v":499.642},"Yes","Yes","Pass","NA"]
[null,"Air Economizer","South Zone System Economizer: FEC","-","-",{"$f":"CCoolCapSouthZoneIECC","v":470.39400000000001},"No",null,null,null,"No","Pass","NA",{"$f":"CCoolCapSouthZoneIECCCZ2","v":499.642},"Yes",null,null,null,"Yes","Pass","NA",{"$f":"CCoolCapSouthZoneIECC","v":470.39400000000001},"No",null,null,null,"No","Pass","NA",{"$f":"CCoolCapSouthZoneIECCCZ2","v":499.642},"Yes",null,null,null,"Yes","Pass","NA"]
[]
[null,"Air Economizer","East Zone System Economizer: ASHRAE ","-","-",{"$f":"CCoolCapEastZone","v":507.00799999999998},"No","No","Pass","NA",null,null,null,{"$f":"CCoolCapEastZoneCZ2","v":515.01800000000003},"Yes","Yes","Pass","NA",null,null,null,{"$f":"CCoolCapEastZone","v":507.00799999999998},"No","No","Pass","NA",null,null,null,{"$f":"CCoolCapEastZoneCZ2","v":515.01800000000003},"Yes","Yes","Pass","NA"]
[null,"Air Economizer","East Zone System Economizer: FEC","-","-",{"$f":"CCoolCapEastZoneIECC","v":507.00799999999998},"No",null,null,null,"No","Pass","NA",{"$f":"CCoolCapEastZoneIECCCZ2","v":515.01800000000003},"Yes",null,null,null,"Yes","Pass","NA",{"$f":"CCoolCapEastZoneIECC","v":507.00799999999998},"No",null,null,null,"No","Pass","NA",{"$f":"CCoolCapEastZoneIECCCZ2","v":515.01800000000003},"Yes",null,null,null,"Yes","Pass","NA"]
[]
[null,"Air Economizer","West Zone System Economizer: ASHRAE ","-","-",{"$f":"CCoolCapWestZone","v":491.83},"No","No","Pass","NA",null,null,null,{"$f":"CCoolCapWestZoneCZ2","v":530.70500000000004},"Yes","Yes","Pass","NA",null,null,null,{"$f":"CCoolCapWestZone","v":491.83},"No","No","Pass","NA",null,null,null,{"$f":"CCoolCapWestZoneCZ2","v":530.70500000000004},"Yes","Yes","Pass","NA"]
[null,"Air Economizer","West Zone System Economizer: FEC","-","-",{"$f":"CCoolCapWestZoneIECC","v":491.83},"No",null,null,null,"No","Pass","NA",{"$f":"CCoolCapWestZoneIECCCZ2","v":530.70500000000004},"Yes",null,null,null,"Yes","Pass","NA",{"$f":"CCoolCapWestZoneIECC","v":491.83},"No",null,null,null,"No","Pass","NA",{"$f":"CCoolCapWestZoneIECCCZ2","v":530.70500000000004},"Yes",null,null,null,"Yes","Pass","NA"]
[]
[null,"Air Economizer","Core Zone System Economizer: ASHRAE ","-","-",{"$f":"CCoolCapCoreZone","v":7053.7650000000003},"No","No","Pass","NA",null,null,null,{"$f":"CCoolCapCoreZoneCZ2","v":7487.5439999999999},"Yes","Yes","Pass","NA",null,null,null,{"$f":"CCoolCapCoreZone","v":7053.7650000000003},"No","No","Pass","NA",null,null,null,{"$f":"CCoolCapCoreZoneCZ2","v":7487.5439999999999},"Yes","Yes","Pass","NA"]
[null,"Air Economizer","Core Zone System Economizer: FEC","-","-",{"$f":"CCoolCapCoreZoneIECC","v":7053.7650000000003},"No",null,null,null,"No","Pass","NA",{"$f":"CCoolCapCoreZoneIECCCZ2","v":7487.5439999999999},"Yes",null,null,null,"Yes","Pass","NA",{"$f":"CCoolCapCoreZoneIECC","v":7053.7650000000003},"No",null,null,null,"No","Pass","NA",{"$f":"CCoolCapCoreZoneIECCCZ2","v":7487.5439999999999},"Yes",null,null,null,"Yes","Pass","NA"]
[]
[]
["Service Water Heating"]
[null,"SWH","SWH Type",null,null,null,null,"Storage Water Heater",null,null,"Storage Water Heater",null,null,null,null,"Storage Water Heater",null,null,"Storage Water Heater",null,null,null,null,"Storage Water Heater",null,null,"Storage Water Heater",null,null,null,null,"Storage Water Heater",null,null,"Storage Water Heater"]
[null,"SWH","Fuel Type",null,null,null,null,"Gas",null,null,"Gas",null,null,null,null,"Gas",null,null,"Gas",null,null,null,null,"Gas",null,null,"Gas",null,null,null,null,"Gas",null,null,"Gas"]
[]
[]
[null,"SWH","Size <= 75 kBtu/h, Energy Factor (EF)"," - ","MIN",75,0.57999999999999996,0.51800000000000002,"Pass",0.51800000000000002,0.51800000000000002,"Pass",0.51800000000000002,77,null,null,"Pass",null,null,null,null,75,0.57999999999999996,0.51800000000000002,"Pass","Pass",0.51800000000000002,"Pass","Pass",77,null,null,"Pass",null,null,"Pass"]
[null,"SWH","Size > 75 kBtu/h, Thermal Efficiency (Et)","%Et","MIN",{"$f":"SWHCapacity","v":75},null,null,"Pass",null,null,"Pass",null,{"$f":"SWHCapacityCZ2","v":77},84,80,"Pass","Pass",80,null,"Pass",{"$f":"T3SWHCapacity","v":75},null,null,"Pass",null,null,"Pass",null,{"$f":"T4SWHCapacity","v":77},84,80,"Pass","Pass",80,"Pass","Pass"]